bitfinex/quotes_ETHUSD_20251118
["timestamp","ask_amount","ask_price","bid_price","bid_amount"]
[1763463062768,0.002,3066.6,3066.5,0.4666]
[1763463062969,0.1976,3068.1,3066.6,0.405504]
[1763463062970,1.177,3067.8,3066.6,0.405504]
[1763463063178,0.002,3067.0,3066.7,0.22638966]
[1763463063389,0.277,3066.9,3066.8,0.405504]
[1763463063703,0.277,3066.9,3066.8,1.356904]
[1763463065696,0.002,3067.0,3066.9,1.31249664]
[1763463065894,1.456,3067.0,3066.9,3.38163711]
[1763463067117,1.456,3067.0,3066.9,2.47464447]
[1763463067297,1.456,3067.0,3066.9,3.38163711]
[1763463067906,1.4552,3067.0,3066.9,3.38163711]
[1763463068208,1.4552,3067.0,3066.9,2.06914047]
[1763463068411,1.6937,3067.0,3066.1,0.1838]
[1763463068613,1.4552,3067.0,3066.2,0.4939]
[1763463068795,0.0012,3067.0,3066.2,0.52651365]
[1763463068996,1.454,3066.9,3066.3,0.405504]
[1763463069399,1.454,3066.9,3066.4,0.4939]
[1763463069905,1.454,3066.9,3066.8,0.4935]
[1763463070520,1.454,3066.9,3066.8,0.9874]
[1763463070929,1.454,3066.9,3066.8,0.4935]
[1763463071218,1.454,3066.9,3066.4,0.4939]
[1763463072381,1.454,3066.9,3066.8,0.4935]
[1763463072787,1.454,3066.9,3066.4,0.4939]
[1763463073118,1.454,3066.9,3066.8,0.4935]
[1763463073637,1.7039,3066.9,3066.4,0.4939]
[1763463073794,0.0012,3067.0,3066.1,0.1838]
[1763463073795,1.454,3066.8,3066.1,0.1838]
[1763463073989,1.454,3066.8,3066.1,0.6777]
[1763463075220,1.9531,3066.8,3066.1,0.1838]
[1763463075714,1.9531,3066.8,3066.2,0.4939]
[1763463075715,1.454,3066.8,3066.2,0.4939]
[1763463076017,0.0012,3067.0,3066.7,0.4935]
[1763463076192,1.454,3066.9,3066.7,0.4935]
[1763463076593,0.4663,3066.8,3066.1,0.1838]
[1763463076902,0.4663,3066.8,3066.1,0.6777]
[1763463077102,0.0012,3067.0,3066.7,0.4935]
[1763463077303,1.454,3066.9,3066.2,0.4939]
[1763463077706,1.454,3066.9,3066.8,0.4935]
[1763463078340,1.454,3066.9,3066.4,0.4939]
[1763463080288,1.454,3066.9,3066.8,0.4652]
[1763463081721,1.454,3066.9,3066.4,0.4939]
[1763463084843,1.454,3066.9,3066.1,0.1838]
[1763463084844,0.4661,3066.8,3066.1,0.1838]
[1763463085694,0.4661,3066.8,3066.1,0.6634]
[1763463086512,0.4661,3066.8,3066.1,1.21043926]
[1763463087246,1.454,3066.9,3066.7,0.4652]
[1763463087399,1.454,3066.9,3066.8,0.4652]
[1763463087599,1.75893415,3066.9,3066.8,0.4652]
[1763463087794,1.75893415,3066.9,3066.4,0.4796]
[1763463088001,1.6354,3066.9,3066.1,0.6634]
[1763463088200,0.4661,3066.8,3066.1,0.6634]
[1763463089135,0.4661,3066.8,3065.9,0.4796]
[1763463089550,1.6354,3066.9,3065.9,0.4796]
[1763463089710,0.30497133,3066.8,3065.9,0.4796]
[1763463089905,1.6354,3066.9,3065.9,0.4796]
[1763463090100,0.30495448,3066.8,3065.9,0.4796]
[1763463090306,0.0012,3067.0,3066.8,0.4652]
[1763463090548,1.75895297,3066.9,3066.8,0.4652]
[1763463090849,1.75894908,3066.9,3066.8,0.4652]
[1763463091021,1.454,3066.9,3066.8,0.4652]
[1763463091547,1.177,3066.9,3066.8,0.4652]
[1763463092025,1.177,3066.9,3066.8,0.9448]
[1763463092432,1.177,3066.9,3066.8,0.4652]
[1763463092738,1.453,3066.9,3066.8,0.4652]
[1763463094814,1.453,3066.9,3066.8,0.9448]
[1763463095903,1.7398,3066.9,3066.4,0.4796]
[1763463096552,1.453,3066.9,3066.8,0.4687]
[1763463098220,1.903,3066.9,3066.4,0.001]
[1763463098408,0.0048,3066.7,3066.4,0.001]
[1763463098614,1.6352,3066.9,3066.4,0.001]
[1763463098830,0.30521029,3066.8,3066.4,0.001]
[1763463099033,2.1205,3066.9,3066.4,0.4778]
[1763463099234,0.30521668,3066.8,3066.4,0.001]
[1763463099433,0.4853,3066.8,3066.4,0.001]
[1763463099644,0.267,3066.5,3066.4,0.001]
[1763463099845,0.544,3066.5,3066.4,0.001]
[1763463100044,1.0271,3066.5,3066.4,0.001]
[1763463100220,1.33222941,3066.5,3066.4,0.001]
[1763463108078,4.59322205,3066.5,3066.4,0.001]
[1763463108462,3.41622205,3066.5,3066.4,0.001]
[1763463112783,2.64472605,3066.5,3066.4,0.001]
[1763463115187,2.64392605,3066.5,3066.4,0.001]
[1763463116298,3.34279153,3066.5,3066.4,0.001]
[1763463116501,2.36692605,3066.5,3066.4,0.001]
[1763463116667,2.64392605,3066.5,3066.4,0.001]
[1763463118187,4.99792605,3066.5,3066.4,0.001]
[1763463119164,2.64392605,3066.5,3066.4,0.001]
[1763463119372,3.34259914,3066.5,3066.4,0.001]
[1763463119572,2.64392605,3066.5,3066.4,0.001]
[1763463119796,3.34259821,3066.5,3066.4,0.001]
[1763463120311,0.57132941,3066.5,3066.4,0.001]
[1763463120513,0.84832941,3066.5,3066.4,0.001]
[1763463120669,0.57132941,3066.5,3066.4,0.001]
[1763463120865,0.84832941,3066.5,3066.4,0.001]
[1763463121491,0.5432,3066.5,3066.4,0.001]
[1763463121665,0.0004,3067.0,3066.4,0.4697]
[1763463121868,0.0004,3067.0,3066.9,0.4687]
[1763463122187,0.2774,3067.0,3066.9,0.4687]
[1763463122410,0.5333,3067.0,3066.4,0.001]
[1763463122602,0.49599726,3066.9,3066.4,0.001]
[1763463123108,0.4853,3066.8,3066.4,0.001]
[1763463123265,0.78859726,3066.8,3066.4,0.001]
[1763463123705,0.452,3066.5,3066.4,0.001]
[1763463123912,0.729,3066.5,3066.4,0.001]
[1763463125000,0.58053408,3066.5,3066.4,0.001]
[1763463125302,1.0159,3066.5,3066.4,0.001]
[1763463125509,1.31943408,3066.5,3066.4,0.001]
[1763463125867,0.83643408,3066.5,3066.4,0.001]
[1763463126282,0.58053408,3066.5,3066.4,0.4759]
[1763463126618,1.31963408,3066.5,3066.4,0.001]
[1763463127193,0.30353408,3066.5,3066.4,0.001]
[1763463127407,0.58053408,3066.5,3066.4,0.4759]
[1763463127929,0.58053408,3066.5,3066.4,0.001]
[1763463128117,2.93453408,3066.5,3066.4,0.001]
[1763463128792,1.31963408,3066.5,3066.4,0.001]
[1763463129221,0.86323408,3066.5,3066.4,0.001]
[1763463130235,1.31963408,3066.5,3066.4,0.001]
[1763463130382,2.02131116,3066.5,3066.4,0.001]
[1763463133144,1.28791116,3066.5,3066.4,0.001]
[1763463133295,0.58053408,3066.5,3066.4,0.001]
[1763463133497,0.58053408,3066.5,3066.4,0.4759]
[1763463134006,0.58053408,3066.5,3066.4,0.9392]
[1763463134623,0.58053408,3066.5,3066.4,0.4759]
[1763463134792,0.58253408,3066.5,3066.4,0.001]
[1763463135128,0.58253408,3066.5,3066.4,0.4759]
[1763463136027,0.58253408,3066.5,3066.4,0.001]
[1763463136220,0.58253408,3066.5,3066.4,0.4759]
[1763463136530,0.58253408,3066.5,3066.4,0.9392]
[1763463136732,0.58253408,3066.5,3066.4,0.4759]
[1763463136903,0.58253408,3066.5,3066.4,0.9392]
[1763463137093,0.002,3066.5,3066.4,0.9392]
[1763463137297,0.279,3066.5,3066.4,0.9392]
[1763463137815,0.58253408,3066.5,3066.4,0.9392]
[1763463138016,0.279,3066.5,3066.4,0.9392]
[1763463138199,1.75953408,3066.5,3066.4,0.9392]
[1763463138402,1.75873408,3066.5,3066.4,0.4759]
[1763463138729,1.75873408,3066.5,3066.4,0.9392]
[1763463139129,1.4552,3066.5,3066.4,0.9392]
[1763463141305,0.0012,3066.5,3066.4,0.9392]
[1763463141633,1.4552,3066.5,3066.4,0.9392]
[1763463141823,0.0012,3066.5,3066.4,0.9392]
[1763463142020,1.4552,3066.5,3066.4,0.9392]
[1763463145519,0.0012,3066.5,3066.4,0.9392]
[1763463145721,1.1782,3066.5,3066.4,0.9392]
[1763463145912,1.4552,3066.5,3066.4,0.9392]
[1763463146915,1.4552,3066.5,3066.4,1.12381926]
[1763463148225,1.177,3066.5,3066.4,1.52932326]
[1763463149050,0.002,3066.9,3066.4,1.52932326]
[1763463149353,0.002,3066.9,3066.8,0.4771]
[1763463149660,0.278,3066.9,3066.8,0.4771]
[1763463149866,0.278,3066.9,3066.8,0.9659]
[1763463153151,0.7163,3066.9,3066.4,0.001]
[1763463153350,0.2456,3066.5,3066.4,0.001]
[1763463153528,0.54998392,3066.5,3066.4,0.001]
[1763463153735,0.2456,3066.5,3066.4,0.001]
[1763463153961,0.276,3066.5,3066.4,0.001]
[1763463154160,0.5211,3066.5,3066.4,0.001]
[1763463154360,1.0038,3066.5,3066.4,0.001]
[1763463154662,0.002,3066.9,3066.4,0.9669]
[1763463154831,0.002,3066.9,3066.8,0.4771]
[1763463155030,0.002,3066.9,3066.8,0.9659]
[1763463155031,0.279,3066.9,3066.8,0.9659]
[1763463158290,1.456,3066.9,3066.8,7.30341266]
[1763463158500,1.456,3066.9,3066.8,8.12445319]
[1763463159590,0.002,3066.9,3066.8,8.12445319]
[1763463159909,1.455,3066.9,3066.8,8.12445319]
[1763463161712,0.002,3066.9,3066.8,8.12445319]
[1763463161868,1.455,3066.9,3066.8,8.12445319]
[1763463162063,1.4542,3066.9,3066.8,8.12445319]
[1763463163370,1.4542,3066.9,3066.8,8.52995719]
[1763463163888,1.1782,3066.9,3066.8,9.43694983]
[1763463164087,1.4542,3066.9,3066.8,9.43694983]
[1763463164764,1.4542,3066.9,3066.8,10.4177731]
[1763463165168,0.2772,3066.9,3066.8,10.4177731]
[1763463165368,1.4542,3066.9,3066.8,10.4177731]
[1763463165569,0.0012,3066.9,3066.8,10.4177731]
[1763463165769,1.4542,3066.9,3066.8,10.4177731]
[1763463165966,1.4542,3066.9,3066.8,3.67475644]
[1763463166199,1.4542,3066.9,3066.8,2.69393317]
[1763463166700,0.0012,3066.9,3066.8,2.69393317]
[1763463166901,1.4542,3066.9,3066.8,2.72654044]
[1763463167070,1.4542,3066.9,3066.8,2.69393317]
[1763463168180,1.4542,3066.9,3066.8,3.09943717]
[1763463168893,0.0004,3067.0,3066.9,1.31249664]
[1763463169218,0.002,3067.3,3066.9,4.36163376]
[1763463169384,0.002,3067.3,3067.2,16.4078883]
[1763463169768,0.002,3067.4,3067.3,0.405504]
[1763463169973,0.002,3067.4,3067.3,1.39540596]
[1763463170182,0.002,3067.4,3067.3,2.87985639]
[1763463170403,0.002,3067.4,3067.3,4.63787843]
[1763463170581,0.278,3067.4,3067.3,4.63787843]
[1763463172093,0.278,3067.4,3067.3,2.87985639]
[1763463172586,0.278,3067.4,3067.3,3.15785639]
[1763463173924,0.278,3067.4,3067.3,2.26345239]
[1763463174096,0.278,3067.4,3067.3,1.51705239]
[1763463174295,0.278,3067.4,3067.3,1.37539264]
[1763463175401,0.278,3067.4,3067.3,1.86429264]
[1763463176990,0.278,3067.4,3067.3,0.4684]
[1763463177818,0.278,3067.4,3067.3,0.9573]
[1763463178203,1.455,3067.4,3067.3,0.9573]
[1763463178404,1.455,3067.4,3067.3,1.15799852]
[1763463178890,1.455,3067.4,3067.3,1.56350252]
[1763463179426,0.002,3067.4,3067.3,1.56350252]
[1763463179584,1.455,3067.4,3067.3,1.56350252]
[1763463181004,1.179,3067.4,3067.3,1.56350252]
[1763463181206,1.455,3067.4,3067.3,1.07460252]
[1763463181420,1.455,3067.4,3067.3,0.66909852]
[1763463181928,1.455,3067.4,3067.3,1.15799852]
[1763463182226,1.455,3067.4,3067.3,1.56350252]
[1763463182610,1.455,3067.4,3067.3,1.07460252]
[1763463182930,1.455,3067.4,3067.3,0.66909852]
[1763463184032,1.455,3067.4,3067.3,1.56350252]
[1763463185230,1.455,3067.4,3067.3,5.46350252]
[1763463185647,1.4542,3067.4,3067.3,5.46350252]
[1763463186500,1.4542,3067.4,3067.3,7.22152456]
[1763463187552,1.4542,3067.4,3067.3,5.46350252]
[1763463187759,1.4542,3067.4,3067.3,4.97460252]
[1763463187923,1.7292,3067.4,3067.3,4.10069852]
[1763463188255,1.4542,3067.4,3067.3,5.48519116]
[1763463188750,1.4542,3067.4,3067.3,5.95859116]
[1763463189332,0.0012,3067.4,3067.3,6.36409516]
[1763463189650,0.0012,3067.4,3067.3,8.15471916]
[1763463189651,0.2772,3067.4,3067.3,8.15471916]
[1763463189854,0.002,3067.6,3067.5,0.405504]
[1763463190067,0.002,3067.6,3067.5,7.51928006]
[1763463190068,1.179,3067.6,3067.5,7.51928006]
[1763463190263,1.455,3067.6,3067.5,7.48668023]
[1763463190477,1.455,3067.6,3067.5,5.72646538]
[1763463190767,1.455,3067.6,3067.5,7.95908023]
[1763463190968,1.455,3067.6,3067.5,8.08644084]
[1763463191849,1.455,3067.6,3067.5,4.49452038]
[1763463192144,1.73,3067.6,3067.3,0.20169852]
[1763463192731,1.455,3067.6,3067.3,0.20169852]
[1763463195264,0.275,3067.4,3067.3,0.001]
[1763463195636,0.7401,3067.4,3067.3,0.001]
[1763463201158,1.728,3067.4,3067.3,0.001]
[1763463201477,2.1931,3067.4,3067.3,0.001]
[1763463202946,2.49878067,3067.4,3067.3,0.001]
[1763463203147,1.32178067,3067.4,3067.3,0.001]
[1763463204468,1.72728467,3067.4,3067.3,0.001]
[1763463204872,1.32178067,3067.4,3067.3,0.001]
[1763463205390,1.04578067,3067.4,3067.3,0.001]
[1763463205593,1.32178067,3067.4,3067.3,0.001]
[1763463206384,1.04578067,3067.4,3067.3,0.001]
[1763463206593,0.275,3067.4,3067.3,0.001]
[1763463206747,0.551,3067.4,3067.3,0.001]
[1763463207085,1.0181,3067.4,3067.3,0.001]
[1763463207393,1.0181,3067.4,3067.3,0.4998]
[1763463207394,0.002,3067.4,3067.3,0.4998]
[1763463207549,0.278,3067.4,3067.3,0.9862]
[1763463208184,1.455,3067.4,3067.3,0.9862]
[1763463209186,1.4542,3067.4,3067.3,0.4998]
[1763463210785,2.1908,3067.4,3067.3,0.001]
[1763463211287,1.709,3067.4,3067.3,0.001]
[1763463211980,1.4542,3067.4,3067.3,0.4998]
[1763463213167,1.709,3067.4,3067.3,0.001]
[1763463216174,2.1908,3067.4,3067.3,0.001]
[1763463218107,2.49636382,3067.4,3067.3,0.001]
[1763463219101,1.1782,3067.4,3067.3,0.4751]
[1763463219303,1.1782,3067.4,3067.3,0.9455]
[1763463219503,1.4542,3067.4,3067.3,0.9455]
[1763463219800,1.4542,3067.4,3067.3,1.351004]
[1763463219976,1.4542,3067.4,3067.3,1.7529099]
[1763463220801,1.4542,3067.4,3067.3,2.65990254]
[1763463221000,1.4542,3067.4,3067.3,4.4209649]
[1763463221303,1.4542,3067.4,3067.3,0.8770059]
[1763463221507,1.4542,3067.4,3067.3,1.3474059]
[1763463222391,1.4542,3067.4,3067.3,0.9455]
[1763463223105,1.7109,3067.4,3067.3,0.001]
[1763463224706,1.4542,3067.4,3067.3,0.001]
[1763463227404,1.4542,3067.4,3067.3,0.4751]
[1763463229713,2.1983,3067.4,3067.3,0.001]
[1763463230578,1.4542,3067.4,3067.3,0.4751]
[1763463231582,1.4542,3067.4,3067.3,0.9455]
[1763463232228,2.1983,3067.4,3067.3,0.001]
[1763463232630,2.1975,3067.4,3067.3,0.001]
[1763463233828,2.50337621,3067.4,3067.3,0.001]
[1763463234746,0.56297981,3067.4,3067.3,0.001]
[1763463234930,1.4534,3067.4,3067.3,0.4751]
[1763463235944,1.4534,3067.4,3067.3,0.001]
[1763463236267,1.7101,3067.4,3067.3,0.001]
[1763463236624,2.1975,3067.4,3067.3,0.001]
[1763463237909,1.7101,3067.4,3067.3,0.001]
[1763463238433,2.1975,3067.4,3067.3,0.001]
[1763463239141,1.7101,3067.4,3067.3,0.001]
[1763463239746,1.4534,3067.4,3067.3,0.001]
[1763463240134,1.4534,3067.4,3067.3,0.4751]
[1763463240327,1.7101,3067.4,3067.3,0.001]
[1763463240658,1.4534,3067.4,3067.3,0.4751]
[1763463240832,1.1774,3067.4,3067.3,0.9455]
[1763463241234,1.4534,3067.4,3067.3,0.9455]
[1763463241442,1.4534,3067.4,3067.3,0.4751]
[1763463241845,1.7101,3067.4,3067.3,0.001]
[1763463242168,1.4534,3067.4,3067.3,0.4751]
[1763463242850,1.4534,3067.4,3067.3,0.9455]
[1763463243434,1.7101,3067.4,3067.3,0.001]
[1763463243836,1.4534,3067.4,3067.3,0.4751]
[1763463244035,1.4534,3067.4,3067.3,0.9455]
[1763463244970,1.4534,3067.4,3067.3,1.13074926]
[1763463245362,1.4534,3067.4,3067.3,0.18624926]
[1763463245561,1.7101,3067.4,3067.3,0.001]
[1763463246770,2.1821,3067.4,3067.3,0.001]
[1763463247352,1.7101,3067.4,3067.3,0.001]
[1763463247566,1.4534,3067.4,3067.3,0.001]
[1763463247967,0.0004,3067.4,3067.3,0.4705]
[1763463248184,1.4534,3067.4,3067.3,0.4705]
[1763463248890,1.4534,3067.4,3067.3,0.9695]
[1763463249392,1.4534,3067.4,3067.3,0.65814926]
[1763463249770,1.4534,3067.4,3067.3,0.4705]
[1763463250292,1.4534,3067.4,3067.3,0.9695]
[1763463252698,1.4534,3067.4,3067.3,0.001]
[1763463252856,1.9487,3067.4,3067.3,0.001]
[1763463253259,1.4534,3067.4,3067.3,0.4705]
[1763463253573,1.4534,3067.4,3067.3,0.9695]
[1763463253791,1.4534,3067.4,3067.3,1.15714926]
[1763463254162,0.0004,3067.4,3067.3,1.15714926]
[1763463254359,1.4534,3067.4,3067.3,1.15714926]
[1763463255116,1.4534,3067.4,3067.3,3.32371562]
[1763463255986,1.177,3067.4,3067.3,3.32371562]
[1763463256326,1.177,3067.4,3067.3,8.13070826]
[1763463256522,1.177,3067.4,3067.3,6.3696459]
[1763463257181,1.453,3067.4,3067.3,6.3696459]
[1763463258598,0.0016,3067.6,3067.4,1.31249664]
[1763463258805,0.0016,3067.6,3067.5,6.48281072]
[1763463258993,1.177,3067.6,3067.5,6.98181072]
[1763463259186,1.177,3067.6,3067.5,6.94921089]
[1763463259390,0.002,3067.8,3067.6,1.31249664]
[1763463259592,0.002,3067.8,3067.7,3.55519133]
[1763463259792,1.179,3067.8,3067.7,4.52873189]
[1763463260293,1.455,3067.8,3067.7,4.52873189]
[1763463261147,0.002,3068.1,3067.8,1.31249664]
[1763463261359,0.002,3068.1,3068.0,1.80079664]
[1763463261655,0.002,3068.5,3068.1,0.405504]
[1763463261788,0.002,3068.5,3068.3,1.96999664]
[1763463261994,0.278,3068.4,3068.3,1.96999664]
[1763463262306,0.278,3068.4,3068.3,1.555004]
[1763463262501,0.278,3068.4,3068.3,2.1104169]
[1763463263294,0.276,3068.4,3068.3,2.76883404]
[1763463263694,0.002,3068.8,3068.5,0.405504]
[1763463264009,0.002,3068.8,3068.7,0.893804]
[1763463264205,0.002,3068.8,3068.7,1.28171369]
[1763463264522,0.002,3068.8,3068.7,1.77371369]
[1763463264694,0.002,3068.9,3068.8,0.405504]
[1763463265028,0.002,3068.9,3068.8,1.385804]
[1763463265227,0.4942,3070.1,3068.8,1.385804]
[1763463265430,0.4942,3070.1,3069.0,0.405504]
[1763463265733,0.4942,3070.1,3069.2,0.405504]
[1763463266235,0.4942,3070.1,3069.3,0.492]
[1763463266535,0.6791,3070.4,3069.4,0.03257965]
[1763463266718,0.276,3070.2,3069.9,0.4883]
[1763463267316,0.276,3070.2,3069.5,0.492]
[1763463267317,0.2539,3070.0,3069.5,0.492]
[1763463267517,0.276,3070.1,3069.6,0.405504]
[1763463267718,0.276,3070.1,3069.9,0.4883]
[1763463267923,0.276,3070.1,3070.0,0.52087328]
[1763463268094,0.276,3070.1,3070.0,0.4883]
[1763463268095,1.452,3070.1,3070.0,0.4883]
[1763463268298,1.452,3070.1,3070.0,0.9803]
[1763463269026,1.452,3070.1,3070.0,1.385804]
[1763463269429,1.452,3070.1,3070.0,0.4883]
[1763463270165,1.452,3070.1,3070.0,0.9803]
[1763463270315,1.452,3070.1,3070.0,1.385804]
[1763463271103,1.452,3070.1,3070.0,2.43836038]
[1763463271322,1.176,3070.1,3070.0,2.43836038]
[1763463271839,1.176,3070.1,3070.0,3.00445129]
[1763463272060,0.002,3071.0,3070.4,8.23276714]
[1763463272348,0.002,3071.0,3070.9,0.4883]
[1763463272937,0.278,3071.0,3070.9,1.01286374]
[1763463273133,0.278,3071.0,3070.9,0.9803]
[1763463273326,0.002,3071.1,3071.0,0.405504]
[1763463273521,0.278,3071.1,3071.0,2.43836038]
[1763463273722,0.002,3071.2,3071.0,2.43836038]
[1763463273943,0.002,3071.2,3071.1,0.9803]
[1763463274119,0.4942,3072.1,3071.2,0.405504]
[1763463274317,0.4942,3072.1,3071.4,0.893804]
[1763463274665,0.4942,3072.3,3071.4,0.893804]
[1763463274821,0.4942,3072.1,3071.4,0.893804]
[1763463275255,0.0012,3072.9,3071.4,0.893804]
[1763463275557,0.276,3071.5,3071.4,0.9825]
[1763463275769,0.276,3071.5,3071.4,1.388004]
[1763463275971,0.276,3071.5,3070.9,0.90699264]
[1763463275972,1.0153,3071.5,3070.5,0.4651]
[1763463276118,1.0153,3071.5,3070.7,0.4942]
[1763463276119,0.0114,3071.2,3070.7,0.4942]
[1763463276527,0.4853,3071.4,3070.8,0.0325648]
[1763463276727,0.4853,3071.4,3070.7,0.9593]
[1763463276937,0.002,3071.2,3070.7,0.9593]
[1763463277740,0.4873,3071.2,3070.4,0.4651]
[1763463277955,0.002,3071.2,3070.4,0.4651]
[1763463278173,0.002,3071.2,3070.5,0.51786798]
[1763463278174,1.176,3071.1,3070.5,0.51786798]
[1763463278331,1.176,3071.1,3070.6,0.405504]
[1763463278532,0.002,3071.2,3071.1,0.405504]
[1763463278732,1.454,3071.2,3071.1,0.88986562]
[1763463278941,1.454,3071.2,3071.1,5.66429664]
[1763463279142,1.454,3071.2,3071.1,5.21249664]
[1763463279533,1.4532,3071.2,3071.1,5.21249664]
[1763463280750,1.716,3071.2,3071.1,0.90699264]
[1763463281556,2.1991,3071.2,3071.1,0.90699264]
[1763463282269,1.716,3071.2,3071.1,0.90699264]
[1763463282481,2.1991,3071.2,3070.1,0.4651]
[1763463282637,0.4831,3071.1,3070.4,0.97962222]
[1763463282954,1.716,3071.2,3070.4,0.97962222]
[1763463283159,1.4532,3071.2,3070.4,1.44472222]
[1763463283938,1.4532,3071.2,3070.4,0.97962222]
[1763463284139,1.4532,3071.2,3070.5,0.49766798]
[1763463284570,1.9385,3071.2,3070.5,0.4651]
[1763463284951,1.4532,3071.2,3070.5,0.49766798]
[1763463285151,1.4532,3071.2,3070.5,0.4651]
[1763463285971,0.4853,3071.1,3070.2,0.68080547]
[1763463286279,0.4853,3071.1,3070.2,1.66042769]
[1763463286479,0.4853,3071.1,3070.3,0.16604277]
[1763463286774,0.4853,3071.1,3070.2,0.21570547]
[1763463286936,0.4853,3071.1,3070.0,0.63939827]
[1763463287280,0.4853,3071.1,3070.0,0.97978219]
[1763463287588,0.4853,3071.1,3070.0,0.405504]
[1763463289257,0.4853,3071.1,3070.0,1.04796783]
[1763463289564,0.4853,3071.1,3070.1,0.202775]
[1763463290296,0.4853,3071.1,3070.2,0.03257116]
[1763463290497,0.4853,3071.1,3070.1,0.866675]
[1763463291601,0.2628,3070.2,3070.0,0.64246383]
[1763463291894,0.4774,3070.1,3069.4,0.4651]
[1763463292193,0.4774,3070.1,3069.5,0.97992301]
[1763463292194,0.25,3070.0,3069.5,0.97992301]
[1763463292358,0.25,3070.0,3068.9,0.26481193]
[1763463292558,0.7254,3070.0,3069.4,0.4853]
[1763463292757,0.7254,3070.0,3069.1,0.83978394]
[1763463292960,0.0048,3069.2,3068.7,0.4651]
[1763463293162,0.276,3069.1,3068.9,0.4853]
[1763463293458,0.276,3069.1,3068.9,0.64151965]
[1763463293685,0.276,3069.1,3068.8,0.405504]
[1763463293888,0.276,3069.1,3068.7,0.9405]
[1763463294087,0.276,3069.1,3069.0,0.4518]
[1763463294599,1.0014,3069.1,3068.1,1.7524295]
[1763463294780,0.4579,3068.2,3068.1,0.17534295]
[1763463294966,0.7339,3068.2,3068.1,0.4754]
[1763463295300,0.276,3068.2,3067.7,0.001]
[1763463295460,0.276,3068.2,3067.9,0.4754]
[1763463295661,0.276,3068.2,3067.7,0.406504]
[1763463295881,0.276,3068.2,3067.7,0.4573]
[1763463296195,0.276,3068.2,3068.0,0.63885707]
[1763463296527,0.276,3068.2,3068.1,0.4518]
[1763463297428,0.7339,3068.2,3068.0,0.001]
[1763463297592,0.276,3068.2,3068.0,0.001]
[1763463297992,0.276,3068.2,3068.0,0.65680557]
[1763463298186,0.276,3068.2,3068.0,0.001]
[1763463301132,0.4853,3069.1,3068.1,1.1157]
[1763463301335,0.4853,3068.7,3068.0,0.001]
[1763463302042,1.176,3068.6,3068.0,0.001]
[1763463302404,1.176,3068.6,3068.1,0.1988]
[1763463302719,8.23276714,3070.2,3068.5,0.4518]
[1763463302928,8.23276714,3070.2,3068.1,0.6639]
[1763463302929,1.47877286,3070.1,3068.1,0.6639]
[1763463303139,0.30197286,3070.0,3068.1,0.6639]
[1763463303305,0.276,3069.9,3068.1,0.6639]
[1763463303737,0.276,3069.9,3068.0,0.65589183]
[1763463303944,0.36207363,3070.7,3068.2,0.870604]
[1763463304127,0.276,3070.6,3068.4,0.405504]
[1763463304328,8.23276714,3070.8,3068.6,0.405504]
[1763463304639,8.23276714,3070.8,3068.8,0.405504]
[1763463304803,8.23396714,3071.2,3068.8,0.405504]
[1763463305010,0.276,3070.7,3069.0,0.405504]
[1763463305228,0.276,3070.7,3068.9,0.4651]
[1763463305549,0.90699264,3070.3,3068.7,0.98009908]
[1763463305839,0.90699264,3070.3,3068.6,0.4651]
[1763463306031,0.90699264,3070.3,3068.6,1.44519908]
[1763463306345,0.90699264,3070.3,3068.3,0.4863]
[1763463306546,0.90699264,3070.3,3068.3,1.46665851]
[1763463307309,0.405504,3070.2,3068.3,0.4863]
[1763463307637,0.276,3070.1,3068.3,0.4863]
[1763463308013,1.176,3070.0,3068.3,0.4863]
[1763463308208,3.25899264,3070.0,3068.3,0.4863]
[1763463310135,2.628,3069.9,3068.4,0.405504]
[1763463310321,2.628,3069.9,3068.5,0.4863]
[1763463311040,0.90699264,3070.3,3068.5,0.4863]
[1763463311208,2.628,3070.2,3068.5,0.51888921]
[1763463311405,0.90699264,3070.1,3068.5,0.51888921]
[1763463311940,1.452,3070.0,3068.5,0.51888921]
[1763463312148,1.452,3069.9,3068.5,0.51888921]
[1763463312325,1.452,3069.9,3068.5,0.4863]
[1763463312523,1.452,3069.9,3068.3,0.4873]
[1763463314746,2.628,3069.8,3068.4,0.405504]
[1763463315047,0.276,3069.7,3068.5,0.90699264]
[1763463315214,0.276,3069.7,3068.6,0.52124966]
[1763463315518,0.276,3069.7,3068.6,1.00754966]
[1763463315721,1.176,3069.6,3068.7,0.43809108]
[1763463315922,0.276,3069.5,3068.7,0.891804]
[1763463316125,0.276,3069.5,3068.9,0.405504]
[1763463316459,0.276,3069.5,3069.4,0.6898]
[1763463316854,0.90699264,3070.9,3069.4,0.6898]
[1763463317156,1.176,3070.3,3069.4,1.1761]
[1763463317314,0.276,3070.2,3069.4,1.1761]
[1763463319237,0.58056147,3070.2,3069.4,1.1761]
[1763463319818,0.58056147,3070.2,3069.4,0.6898]
[1763463320014,0.58056147,3070.2,3068.7,0.4521]
[1763463320319,0.58056147,3070.2,3068.8,0.21331491]
[1763463320320,0.30456147,3070.1,3068.8,0.21331491]
[1763463320542,0.30456147,3070.1,3068.7,0.1888]
[1763463320543,0.30456147,3070.0,3068.7,0.1888]
[1763463320740,0.30456147,3069.9,3068.4,0.4521]